bitfinex/quotes_SOLUSD_20250915
["timestamp","ask_amount","ask_price","bid_price","bid_amount"]
[1757909945037,0.69000001,242.78,242.77,61.63167288]
[1757909945218,1e-08,242.78,242.77,29.81167288]
[1757909945445,1e-08,242.78,242.77,61.63167288]
[1757909950147,0.70000001,242.78,242.77,48.03607887]
[1757909950839,0.70000001,242.78,242.77,48.06607887]
[1757909951044,0.70000001,242.78,242.77,16.24607887]
[1757909951221,0.70000001,242.78,242.77,48.06607887]
[1757909952441,0.70000001,242.78,242.77,0.03]
[1757909952946,0.70000001,242.78,242.77,31.85]
[1757909954219,2.16760519,242.78,242.77,31.85]
[1757909959249,0.70000001,242.78,242.77,31.85]
[1757909959451,2.16760519,242.78,242.77,35.96912509]
[1757909959953,0.70000001,242.78,242.77,35.96912509]
[1757909960118,2.16760519,242.78,242.77,35.96912509]
[1757909960488,1e-08,242.78,242.77,35.96912509]
[1757909960651,1e-08,242.78,242.77,36.66912509]
[1757909960956,1e-08,242.78,242.77,51.73232428]
[1757909962629,1e-08,242.78,242.77,19.91232428]
[1757909962944,1e-08,242.78,242.77,51.73232428]
[1757909965159,1e-08,242.8,242.79,41.06319919]
[1757909965356,1e-08,242.8,242.79,77.41386354]
[1757909965556,1e-08,242.82,242.79,88.41082799]
[1757909965772,1e-08,242.82,242.81,15.06319919]
[1757909965971,1e-08,242.82,242.81,15.47504384]
[1757909966277,1e-08,242.82,242.81,16.17504384]
[1757909966473,1e-08,242.82,242.81,47.97504384]
[1757909966676,0.06,242.83,242.81,47.97504384]
[1757909966677,1e-08,242.83,242.81,52.09349036]
[1757909966858,1e-08,242.83,242.82,2.16760518]
[1757909968661,0.7,242.89,242.85,39.59559401]
[1757909968977,0.7,242.89,242.85,71.39559401]
[1757909969186,0.7,242.89,242.85,72.86319919]
[1757909969575,1.52760518,242.94,242.85,72.86319919]
[1757909969576,0.76,242.94,242.86,13.59559401]
[1757909969776,1e-08,242.88,242.87,46.86319919]
[1757909969966,1e-08,242.88,242.87,47.56319919]
[1757909970771,1e-08,242.88,242.87,53.3306231]
[1757909971490,1e-08,242.88,242.87,19.36301792]
[1757909971673,1e-08,242.88,242.87,52.6306231]
[1757909972190,1e-08,242.88,242.87,53.3306231]
[1757909975354,1e-08,242.88,242.87,52.6306231]
[1757909977549,1e-08,242.88,242.87,53.3306231]
[1757909978972,1e-08,242.88,242.87,53.2906231]
[1757909979167,1e-08,242.88,242.87,52.6306231]
[1757909979388,1e-08,242.88,242.87,55.16997118]
[1757909979600,1e-08,242.88,242.87,54.75822828]
[1757909980099,1e-08,242.88,242.87,134.15822828]
[1757909981419,0.71,242.99,242.91,39.59559401]
[1757909981572,0.71,242.99,242.98,1.46760518]
[1757909981772,4.22437282,243.12,242.98,33.24760518]
[1757909982003,26.0,243.09,242.98,33.24760518]
[1757909982173,1.46760518,243.05,242.98,33.24760518]
[1757909982379,0.71,243.04,242.99,1.46760518]
[1757909982603,0.71,243.03,243.0,35.89522633]
[1757909982788,0.71,243.02,243.0,35.89522633]
[1757909983085,0.71,243.01,243.0,35.89522633]
[1757909983591,0.71,243.03,243.01,13.59559401]
[1757909983804,1.46760518,243.11,243.02,33.24760518]
[1757909983999,1.46760518,243.11,243.03,1.46760518]
[1757909984303,0.71,243.1,243.03,1.46760518]
[1757909984493,0.71,243.09,243.03,1.46760518]
[1757909984808,0.71,243.08,243.04,31.78]
[1757909985109,0.71,243.07,243.05,31.78]
[1757909985308,0.71,243.06,243.05,31.78]
[1757909985541,0.71,243.06,243.02,14.40180173]
[1757909985712,0.1,243.13,243.03,31.78]
[1757909985713,0.71,243.05,243.03,31.78]
[1757909985923,0.71,243.04,243.02,15.86940691]
[1757909986126,4.21305552,243.13,243.03,33.24760518]
[1757909986283,0.1,243.13,243.03,33.24760518]
[1757909986610,1.46760518,243.11,243.04,4.11454904]
[1757909986785,0.71,243.1,243.05,31.78]
[1757909986989,0.71,243.09,243.05,31.78]
[1757909987194,0.71,243.08,243.05,31.78]
[1757909987395,0.71,243.07,243.04,4.11454904]
[1757909987717,1.46760518,243.11,243.06,31.78]
[1757909988211,0.71,243.1,243.06,31.78]
[1757909988416,0.71,243.09,243.07,31.78]
[1757909988598,0.71,243.08,243.07,35.89404122]
[1757909989590,0.71,243.08,243.07,4.11404122]
[1757909989795,0.71,243.08,243.07,35.89404122]
[1757909991192,0.71,243.08,243.05,1.46760518]
[1757909991193,0.71,243.08,243.06,4.11421048]
[1757909991388,0.71,243.07,243.06,4.11421048]
[1757909991609,0.71,243.07,243.06,35.89421048]
[1757909992419,0.71,243.07,243.06,4.11421048]
[1757909992721,0.71,243.07,243.06,35.87421048]
[1757909993614,0.1,243.13,243.06,35.87421048]
[1757909993914,0.71,243.09,243.06,35.87421048]
[1757909994228,0.71,243.08,243.06,35.87421048]
[1757909994611,0.71,243.08,243.07,31.76]
[1757909994920,0.71,243.07,243.06,14.39973668]
[1757909995121,0.71,243.09,243.06,46.15973668]
[1757909995308,1.46760518,243.12,243.06,46.15973668]
[1757909995309,0.71,243.08,243.06,46.15973668]
[1757909996303,0.65,243.1,243.06,47.62734186]
[1757909996621,0.65,243.09,243.06,47.62734186]
[1757909996997,0.65,243.08,243.06,47.62734186]
[1757909997197,0.65,243.08,243.06,46.15973668]
[1757909997900,0.65,243.08,243.06,14.39973668]
[1757909998233,0.65,243.08,243.07,31.76]
[1757909998722,0.65,243.08,243.06,14.39973668]
[1757909999024,1.46760518,243.11,243.07,31.76]
[1757909999400,0.65,243.1,243.07,31.76]
[1757909999600,0.65,243.09,243.08,31.76]
[1757910001125,0.65,243.09,243.08,35.87387197]
[1757910001800,0.75,243.13,243.08,35.87387197]
[1757910002001,0.65,243.12,243.08,4.11387197]
[1757910002206,0.1,243.13,243.09,31.76]
[1757910002414,2.74637833,243.23,243.12,1.46760518]
[1757910002607,0.65,243.24,243.2,1.46760518]
[1757910002822,0.65,243.24,243.23,26.0]
[1757910003035,0.65,243.24,243.23,58.6]
[1757910003211,0.65,243.27,243.22,1.46760518]
[1757910003420,1.46760518,243.32,243.24,1.46760518]
[1757910003738,1.46760518,243.33,243.28,26.0]
[1757910004041,0.65,243.31,243.29,32.6]
[1757910004206,0.65,243.3,243.29,32.6]
[1757910004400,0.65,243.32,243.29,36.71025405]
[1757910004723,0.65,243.32,243.29,36.71030288]
[1757910004911,0.65,243.32,243.31,26.0]
[1757910005424,0.65,243.32,243.31,32.68]
[1757910005635,0.75,243.35,243.31,32.68]
[1757910005821,0.65,243.34,243.31,32.68]
[1757910006133,0.1,243.35,243.31,36.78997507]
[1757910006327,0.65,243.34,243.3,26.0]
[1757910006638,0.65,243.33,243.31,32.68]
[1757910007027,0.65,243.32,243.31,32.68]
[1757910007231,0.75,243.35,243.31,32.68]
[1757910007741,0.65,243.34,243.31,32.68]
[1757910008040,0.65,243.34,243.32,32.66]
[1757910008434,0.1,243.35,243.27,26.62]
[1757910008642,0.1,243.35,243.29,0.93553933]
[1757910009008,0.76,243.35,243.29,5.04578412]
[1757910009433,0.66,243.34,243.3,32.66]
[1757910009633,0.1,243.35,243.3,0.62]
[1757910009809,0.1,243.35,243.28,40.38666917]
[1757910009810,0.76,243.35,243.31,32.64]
[1757910010010,0.1,243.35,243.32,32.82]
[1757910010215,0.1,243.35,243.34,14.53113334]
[1757910010613,0.1,243.35,243.34,15.15113334]
[1757910011346,0.1,243.35,243.34,19.26060979]
[1757910011524,0.1,243.35,243.34,18.32507046]
[1757910011733,0.1,243.35,243.34,52.08060979]
[1757910012115,1e-08,243.35,243.34,55.82276711]
[1757910012921,1e-08,243.35,243.34,57.46943364]
[1757910013320,0.66,243.45,243.4,13.59559401]
[1757910013540,0.66,243.45,243.43,0.93553933]
[1757910013948,0.66,243.45,243.44,32.78]
[1757910014444,0.66,243.45,243.39,26.0]
[1757910014644,1.59553933,243.44,243.4,32.78]
[1757910014945,0.66,243.43,243.37,13.59559401]
[1757910015113,0.66,243.42,243.35,26.0]
[1757910015315,0.66,243.44,243.39,26.93553933]
[1757910015629,0.66,243.47,243.41,0.93553933]
[1757910016243,0.66,243.49,243.43,0.93553933]
[1757910016443,0.66,243.48,243.42,0.93553933]
[1757910016617,0.66,243.47,243.43,32.76]
[1757910016828,0.66,243.46,243.43,32.76]
[1757910017556,0.66,243.5,243.44,41.15113334]
[1757910017857,0.66,243.5,243.46,0.93553933]
[1757910018065,0.66,243.49,243.47,32.74]
[1757910018238,0.93553933,243.51,243.48,32.74]
[1757910018556,0.93553933,243.51,243.44,39.59559401]
[1757910018746,0.66,243.5,243.45,32.72]
[1757910018948,0.66,243.49,243.45,32.72]
[1757910019257,26.0,243.6,243.46,0.62]
[1757910019439,0.66,243.61,243.51,26.0]
[1757910019639,5.0,243.7,243.56,0.93553933]
[1757910019640,0.66,243.64,243.56,0.93553933]
[1757910019952,0.66,243.64,243.58,0.93553933]
[1757910020135,0.16,243.64,243.58,0.93553933]
[1757910020333,0.93553933,243.67,243.58,1.64553933]
[1757910020635,5.0,243.7,243.59,34.13553933]
[1757910020851,0.93553933,243.64,243.6,33.2]
[1757910021059,0.93553933,243.62,243.6,33.2]
[1757910021242,0.93553933,243.62,243.57,26.0]
[1757910021243,4.10357421,243.69,243.57,26.0]
[1757910021434,0.93553933,243.64,243.58,33.2]
[1757910021632,0.93553933,243.62,243.58,33.2]
[1757910021846,0.93553933,243.62,243.59,33.18]
[1757910022053,0.93553933,243.61,243.52,12.34237755]
[1757910022366,0.93553933,243.55,243.5,13.59559401]
[1757910022535,0.66,243.55,243.51,33.18]
[1757910022741,0.66,243.54,243.49,13.59559401]
[1757910023050,0.66,243.54,243.52,26.0]
[1757910023238,0.66,243.56,243.53,33.16]
[1757910023439,0.66,243.55,243.52,26.0]
[1757910023634,0.66,243.55,243.53,33.14]
[1757910024036,26.0,243.64,243.53,33.14]
[1757910024234,0.93553933,243.58,243.52,30.81637433]
[1757910024440,0.93553933,243.56,243.52,26.0]
[1757910024637,0.66,243.55,243.53,33.14]
[1757910024867,0.66,243.55,243.54,33.12]
[1757910025043,0.93553933,243.56,243.54,33.12]
[1757910025248,0.66,243.55,243.54,33.12]
[1757910025469,0.66,243.55,243.47,30.10503202]
[1757910025771,0.93553933,243.53,243.48,72.71559401]
[1757910025959,0.93553933,243.53,243.48,40.30559401]
[1757910026168,1.59553933,243.53,243.49,26.0]
[1757910026469,0.93553933,243.51,243.5,33.1]
[1757910026686,0.66,243.51,243.43,4.10536702]
[1757910026975,0.93553933,243.51,243.44,47.40559401]
[1757910027272,0.66,243.54,243.47,26.0]
[1757910027590,0.93553933,243.54,243.49,4.10694484]
[1757910027868,0.66,243.59,243.5,0.71]
[1757910028177,0.93553933,243.56,243.51,26.0]
[1757910028474,0.93553933,243.56,243.52,33.08]
[1757910028648,1.59553933,243.58,243.52,33.79]
[1757910029056,1.59553933,243.58,243.52,33.08]
[1757910029057,0.93553933,243.56,243.52,33.08]
[1757910029764,3.09158469,243.56,243.52,33.08]
[1757910030267,2.43158469,243.56,243.52,33.08]
[1757910030473,2.43158469,243.57,243.52,30.8163749]
[1757910030785,26.0,243.66,243.53,33.06]
[1757910030948,2.43158469,243.6,243.54,0.71]
[1757910031145,2.43158469,243.62,243.55,39.59559401]
[1757910031346,0.06,243.67,243.58,26.0]
[1757910031564,2.43158469,243.65,243.59,33.04]
[1757910032068,3.09158469,243.65,243.59,33.04]
[1757910032260,2.43158469,243.63,243.59,33.04]
[1757910032769,2.43158469,243.63,243.6,33.02]
[1757910033270,0.66,243.66,243.6,33.02]
[1757910033470,0.67,243.65,243.58,0.71]
[1757910033663,2.43158469,243.63,243.59,33.0]
[1757910034284,0.67,243.62,243.6,33.0]
[1757910034568,0.06,243.67,243.61,0.71]
[1757910034786,2.43158469,243.65,243.61,0.71]
[1757910034955,0.06,243.67,243.61,0.71]
[1757910035154,2.43158469,243.66,243.6,33.0]
[1757910035878,3.16158469,243.67,243.61,4.1049218]
[1757910036254,0.73,243.67,243.62,39.59559401]
[1757910036455,0.73,243.67,243.62,42.0271787]
[1757910037061,3.16158469,243.67,243.63,32.98]
[1757910037265,7.26550577,243.67,243.62,26.0]
[1757910037458,7.26550577,243.67,243.63,32.98]
[1757910037769,2.43158469,243.65,243.64,32.98]
[1757910037970,6.53581937,243.66,243.63,32.98]
[1757910038276,0.73,243.67,243.59,3.14158469]
[1757910038277,7.26550993,243.67,243.64,32.98]
[1757910038576,0.73,243.67,243.65,32.98]
[1757910038777,0.06,243.67,243.66,32.98]
[1757910039454,0.06,243.67,243.61,2.43158469]
[1757910039787,6.53591089,243.65,243.62,32.98]
[1757910040459,6.53591089,243.65,243.58,26.0]
[1757910040654,2.43158469,243.59,243.4,20.0]
[1757910040864,2.43158469,243.59,243.52,13.59559401]
[1757910041070,14.36494594,243.65,243.55,26.0]
[1757910041279,2.43158469,243.61,243.55,26.0]
[1757910041475,0.06,243.67,243.57,13.59559401]
[1757910041659,2.43158469,243.66,243.59,13.59559401]
[1757910041983,2.43158469,243.66,243.6,4.10509031]
[1757910042279,2.43158469,243.65,243.6,4.10509031]
[1757910043071,2.43158469,243.65,243.59,0.03]
[1757910043378,2.43158469,243.63,243.6,58.96]
[1757910043580,2.43158469,243.64,243.6,26.0]
[1757910044002,2.43158469,243.64,243.61,32.94]
[1757910044455,4.16404045,243.67,243.61,32.94]
[1757910044653,2.43158469,243.63,243.61,32.94]
[1757910045065,2.43158469,243.65,243.61,32.94]
[1757910045378,2.43158469,243.65,243.62,32.92]
[1757910046484,2.43158469,243.66,243.62,37.02470541]
[1757910046778,0.06,243.67,243.62,37.02470541]
[1757910047180,2.49158469,243.67,243.61,17.70048869]
[1757910047380,0.06,243.67,243.63,32.9]
[1757910047954,0.06,243.67,243.64,4.10441635]
[1757910049477,2.49158469,243.67,243.65,32.88]
[1757910049665,6.59553026,243.67,243.65,32.88]
[1757910049983,4.10424789,243.65,243.59,0.03]
[1757910050181,14.36486763,243.65,243.6,32.86]
[1757910050365,0.93298374,243.61,243.59,0.03]
[1757910051184,0.93298374,243.6,243.59,0.03]
[1757910052160,5.03807405,243.6,243.59,0.03]
[1757910052882,5.97105779,243.6,243.59,0.03]
[1757910054483,26.0,243.57,243.54,0.03]
[1757910054681,27.96129802,243.57,243.54,0.03]
[1757910054989,0.93298374,243.55,243.54,0.03]
[1757910055189,1.86596748,243.55,243.35,22.5112968]
[1757910055493,0.93298374,243.42,243.41,32.8]
[1757910056378,0.93298374,243.42,243.35,55.94320975]
[1757910056688,0.93298374,243.39,243.36,32.78]
[1757910056896,0.93298374,243.42,243.36,32.78]
[1757910057488,0.93298374,243.44,243.36,33.71298374]
[1757910057795,2.4341108,243.45,243.37,2.4341108]
[1757910057997,2.4341108,243.45,243.37,13.59559401]
[1757910058168,4.10718621,243.48,243.39,4.10863223]
[1757910058369,2.4341108,243.46,243.39,4.10863223]
[1757910058665,2.4341108,243.41,243.36,32.78]
[1757910059195,2.4341108,243.43,243.36,32.78]
[1757910060264,2.4341108,243.39,243.35,0.03]
[1757910060465,2.4341108,243.37,243.35,0.03]
[1757910060767,26.0,243.4,243.35,0.03]
[1757910060983,26.0,243.42,243.38,0.03]
[1757910061180,2.4341108,243.4,243.38,0.03]
[1757910061792,26.0,243.47,243.38,0.03]
[1757910061991,4.10694484,243.49,243.38,0.03]
[1757910061992,2.4341108,243.44,243.38,0.03]
[1757910062369,2.4341108,243.44,243.38,4.13880105]
[1757910062589,10.26533031,243.54,243.42,2.4341108]
[1757910062792,3.45640486,243.59,243.42,2.4341108]
[1757910062793,16.34752763,243.59,243.42,2.4341108]
[1757910062976,2.4341108,243.5,243.44,2.4341108]
[1757910063292,15.3975765,243.58,243.44,2.4341108]
[1757910063293,2.4341108,243.52,243.44,2.4341108]
[1757910063495,1.02844899,243.57,243.46,2.4341108]
[1757910063796,4.10485374,243.62,243.5,2.4341108]
[1757910063985,4.10485374,243.62,243.46,26.0]
[1757910063986,2.4341108,243.61,243.52,2.4341108]
[1757910064290,10.26065572,243.65,243.54,2.4341108]
[1757910064498,2.4341108,243.61,243.52,4.10629307]
[1757910064702,28.4341108,243.62,243.54,2.4341108]
[1757910064989,4.10407945,243.66,243.54,2.4341108]
[1757910065198,4.10407945,243.66,243.56,2.4341108]
[1757910065377,2.4341108,243.63,243.55,2.4341108]
[1757910065572,2.4341108,243.63,243.53,13.59559401]
[1757910065573,2.4341108,243.61,243.5,4.10666911]
[1757910065772,3.51850287,243.56,243.51,58.74]
[1757910066301,3.51850287,243.57,243.51,62.84645225]
[1757910066488,3.51850287,243.57,243.51,36.84645225]
[1757910066688,3.51850287,243.52,243.45,39.59559401]
[1757910066889,4.10525883,243.59,243.38,20.57400525]
[1757910066890,3.51850287,243.51,243.47,32.72]
[1757910067095,3.51850287,243.48,243.47,32.72]
[1757910067293,3.51850287,243.48,243.38,0.03]
[1757910067597,26.0,243.56,243.4,3.51850287]
[1757910067799,3.51850287,243.49,243.41,13.59559401]
[1757910068106,3.51850287,243.49,243.41,17.11409688]
[1757910068300,3.51850287,243.48,243.43,13.59559401]
[1757910068674,26.0,243.56,243.43,13.59559401]
[1757910068994,3.51850287,243.49,243.43,13.59559401]
[1757910069187,3.51850287,243.51,243.45,13.59559401]
[1757910069379,3.51850287,243.51,243.47,13.59559401]
[1757910070001,3.51850287,243.49,243.45,32.74]
[1757910070212,3.51850287,243.46,243.45,32.74]
[1757910070505,3.51850287,243.48,243.45,32.74]
[1757910070805,0.08133972,243.46,243.45,32.74]
[1757910070969,3.59984259,243.46,243.42,26.0]
[1757910071175,3.59984259,243.46,243.43,32.72]
[1757910071176,3.51850287,243.44,243.43,32.72]
[1757910071371,3.51850287,243.44,243.39,4.1085882]
[1757910071601,3.51850287,243.44,243.4,32.72]
[1757910071909,3.59984259,243.46,243.4,32.72]
[1757910072205,0.08133972,243.46,243.44,13.59559401]
[1757910072394,0.08133972,243.46,243.45,21.63247847]
[1757910072578,0.08133972,243.46,243.45,47.22171651]
[1757910072985,0.08133972,243.46,243.45,79.92171651]
[1757910073400,0.08133972,243.46,243.45,54.33247847]
[1757910073572,0.08133972,243.46,243.45,50.40321364]
[1757910073777,0.08133972,243.46,243.45,53.92171651]
[1757910074576,0.07753132,243.48,243.45,53.92171651]
[1757910074577,1e-08,243.48,243.45,53.92171651]
[1757910074782,1e-08,243.49,243.48,39.59559401]
[1757910074995,1e-08,243.49,243.48,40.00630536]
[1757910075980,1e-08,243.49,243.48,43.11409688]
[1757910076416,1e-08,243.49,243.48,47.2212104]
[1757910076775,1e-08,243.49,243.48,43.70270753]
[1757910076979,1e-08,243.49,243.48,47.2212104]
[1757910077584,1e-08,243.49,243.48,43.70270753]
[1757910077994,1e-08,243.49,243.48,4.10711352]
[1757910078200,1e-08,243.49,243.48,32.64]
[1757910080012,3.51850287,243.53,243.49,4.10694484]
[1757910080400,4.10593257,243.56,243.5,32.62]
[1757910080583,3.51850287,243.52,243.5,32.62]
[1757910080915,4.10470392,243.63,243.51,13.59559401]
[1757910081089,0.06,243.67,243.51,17.11409688]
[1757910081090,3.51850287,243.58,243.51,17.11409688]
[1757910081288,0.06,243.52,243.51,13.59559401]
[1757910081491,0.06,243.52,243.51,17.11409688]
[1757910081685,0.06,243.67,243.54,26.0]
[1757910081895,3.51850287,243.65,243.58,13.59559401]
[1757910082210,3.51850287,243.65,243.59,32.62]
[1757910082410,0.06,243.67,243.6,4.10509031]
[1757910082618,3.51850287,243.65,243.6,4.10509031]
[1757910082910,0.06,243.67,243.6,4.10509031]
[1757910082911,0.06,243.67,243.61,13.59559401]
[1757910083091,0.06,243.67,243.63,13.59559401]
[1757910083517,0.06,243.67,243.64,3.51850287]
[1757910083693,0.06,243.67,243.65,32.64]
[1757910083880,0.06,243.67,243.6,34.89326763]
[1757910083881,0.06,243.67,243.62,3.51850287]
[1757910084084,0.06,243.67,243.63,32.64]
[1757910084310,0.06,243.67,243.63,36.15850287]
[1757910084489,0.06,243.67,243.64,4.10441635]
[1757910084687,3.51850287,243.65,243.62,26.0]
[1757910085006,3.51850287,243.63,243.58,26.0]
[1757910085186,0.06,243.67,243.59,32.62]
[1757910085392,0.06,243.67,243.58,26.0]
[1757910085393,3.51850287,243.64,243.58,26.0]
[1757910085623,3.57850287,243.67,243.59,32.62]
[1757910086087,0.06,243.67,243.59,32.62]
[1757910086296,3.51850287,243.66,243.59,32.62]
[1757910086598,3.51850287,243.66,243.59,36.72517081]
[1757910086808,0.06,243.67,243.6,32.62]
[1757910086809,3.51850287,243.64,243.6,32.62]
[1757910087006,3.51850287,243.64,243.55,13.78333555]
[1757910087205,4.16394484,243.67,243.56,26.0]
[1757910087407,4.16394484,243.67,243.56,58.6]
[1757910087605,3.51850287,243.62,243.56,32.6]
[1757910087814,3.51850287,243.61,243.56,36.70566973]
[1757910088130,3.51850287,243.57,243.55,32.6]
[1757910088295,3.51850287,243.56,243.55,32.66]
[1757910088704,7.62426736,243.56,243.55,32.66]
[1757910088914,3.51850287,243.56,243.55,32.66]
[1757910089101,4.1051374,243.6,243.53,32.66]
[1757910089419,3.51850287,243.57,243.54,32.64]
[1757910089713,3.51850287,243.57,243.49,17.89280981]
[1757910089896,3.51850287,243.57,243.5,32.64]
[1757910090300,3.51850287,243.56,243.5,32.64]
[1757910090501,3.51850287,243.55,243.5,32.64]
[1757910090716,0.08943752,243.51,243.5,36.74671773]
[1757910091012,0.08943752,243.51,243.5,54.27149222]
[1757910092020,0.08943752,243.51,243.5,50.75298935]
[1757910092225,0.08943752,243.51,243.5,54.27149222]
[1757910092418,0.08943752,243.51,243.5,79.86081461]
[1757910092595,0.08943752,243.51,243.5,76.34231174]
[1757910092923,0.08943752,243.51,243.5,30.10671773]
[1757910093223,0.08943752,243.51,243.5,32.6]
[1757910093804,0.08943752,243.51,243.5,36.11850287]
[1757910094704,0.08943752,243.51,243.5,40.22527905]
[1757910094917,0.08943752,243.51,243.5,4.10677618]
[1757910095126,0.08943752,243.51,243.48,4.13698136]
[1757910095306,0.08943752,243.51,243.49,32.6]
[1757910095698,3.51850287,243.5,243.48,0.03]
[1757910095923,3.51850287,243.49,243.48,0.03]
[1757910096110,3.51850287,243.49,243.48,32.63]
[1757910097328,3.51850287,243.49,243.48,0.03]
[1757910098021,14.46261794,243.51,243.48,0.03]
[1757910098247,3.51850287,243.49,243.48,0.03]
[1757910098811,8.32544771,243.49,243.48,0.03]
[1757910100134,4.21850287,243.49,243.48,0.03]
[1757910100314,0.7,243.49,243.48,0.03]
[1757910100515,4.21850287,243.49,243.48,0.03]
[1757910102441,26.0,243.46,243.45,0.03]
[1757910102617,46.63259975,243.46,243.45,0.03]
[1757910102819,47.92154779,243.46,243.45,0.03]
[1757910104523,26.0,243.47,243.45,0.03]
[1757910104838,0.78943752,243.51,243.45,0.03]
[1757910105140,3.51850287,243.49,243.45,0.03]
[1757910106030,4.21850287,243.49,243.45,0.03]
[1757910106235,0.08943752,243.51,243.45,0.03]
[1757910106431,3.51850287,243.49,243.45,0.03]
[1757910106938,4.21850287,243.49,243.45,0.03]
[1757910107122,3.51850287,243.48,243.45,0.03]
[1757910108734,0.7,243.49,243.45,0.03]
[1757910108945,3.51850287,243.48,243.45,0.03]
[1757910109950,3.51850287,243.47,243.45,0.03]
[1757910110745,0.07781997,243.46,243.45,0.03]
[1757910110944,0.77781997,243.46,243.45,0.03]
[1757910111944,17.89191685,243.46,243.45,0.03]
[1757910116446,0.07781997,243.46,243.45,0.03]
[1757910117736,0.72781997,243.46,243.45,0.03]
[1757910118136,4.24632284,243.46,243.45,0.03]
[1757910118745,21.94936776,243.46,243.45,0.03]
[1757910119054,0.07781997,243.46,243.45,0.03]
[1757910119253,0.07781997,243.46,243.45,0.72]
[1757910119849,0.07781997,243.46,243.45,8.3461225]
[1757910120238,0.07781997,243.46,243.45,4.82761963]
[1757910120957,0.07781997,243.46,243.45,8.3461225]
[1757910121550,0.07781997,243.46,243.45,4.82761963]
[1757910121755,0.07781997,243.46,243.45,8.3461225]
[1757910122551,0.07781997,243.46,243.45,21.94171651]
[1757910122741,0.08529873,243.48,243.47,39.59559401]
[1757910122941,1e-08,243.5,243.48,13.59559401]
[1757910123177,1e-08,243.5,243.49,49.83409688]
[1757910123361,1e-08,243.5,243.49,50.52409688]
[1757910123534,1e-08,243.52,243.51,39.59559401]
[1757910123733,1e-08,243.53,243.52,13.59559401]
[1757910123938,1e-08,243.54,243.52,14.69623789]
[1757910124245,1e-08,243.55,243.54,39.59559401]
[1757910124442,1e-08,243.55,243.54,43.11409688]
[1757910124639,1e-08,243.55,243.54,0.69]
[1757910124847,1e-08,243.55,243.54,62.96850287]
[1757910125649,1e-08,243.55,243.54,67.07460453]
[1757910126054,1e-08,243.55,243.54,41.07460453]
[1757910126252,1e-08,243.55,243.52,7.62480667]
[1757910126448,1e-08,243.55,243.54,32.76]
[1757910128470,1e-08,243.55,243.54,0.69]
[1757910128677,1e-08,243.55,243.54,33.41]
[1757910129056,1e-08,243.55,243.54,32.72]
[1757910129371,1e-08,243.55,243.54,33.38]
[1757910129961,1e-08,243.55,243.54,46.97559401]
[1757910130364,0.66,243.68,243.58,26.0]
[1757910130558,0.66,243.68,243.61,2.43116014]
[1757910131248,0.66,243.68,243.59,33.38]
[1757910131453,0.66,243.67,243.61,2.43116014]
[1757910131890,0.66,243.67,243.55,14.37076575]
[1757910131891,0.66,243.66,243.62,32.7]
[1757910132096,0.66,243.65,243.62,32.7]
[1757910132268,0.66,243.64,243.62,32.7]
[1757910132970,2.43116014,243.66,243.62,32.7]
[1757910133355,3.09116014,243.66,243.62,32.7]
[1757910133763,0.66,243.66,243.62,32.7]
[1757910133972,0.66,243.65,243.62,32.7]
[1757910134186,0.66,243.64,243.57,3.09116014]
[1757910134356,0.66,243.64,243.58,32.68]
[1757910134856,0.66,243.63,243.56,4.1056513]
[1757910135058,3.09116014,243.63,243.59,32.66]
[1757910135354,26.0,243.67,243.59,32.66]
[1757910135355,3.09116014,243.62,243.59,32.66]
[1757910135556,2.43116014,243.6,243.59,32.66]